bitfinex/quotes_BTCUSD_20250624
["timestamp","ask_amount","ask_price","bid_price","bid_amount"]
[1750784226113,0.66282147,106050.0,106040.0,0.00504582]
[1750784226532,0.67736232,106050.0,106040.0,0.00504582]
[1750784226981,1.03221813,106050.0,106040.0,0.00504582]
[1750784228047,1.00351813,106050.0,106040.0,0.00504582]
[1750784228876,0.55256046,106050.0,106040.0,0.00504582]
[1750784230421,0.55266046,106050.0,106040.0,0.00504582]
[1750784231530,0.58016046,106050.0,106040.0,0.00504582]
[1750784231966,0.90631627,106050.0,106040.0,0.00504582]
[1750784236265,0.58016046,106050.0,106040.0,0.00504582]
[1750784236493,0.5620897,106050.0,106040.0,0.03044582]
[1750784236726,0.5620897,106050.0,106040.0,0.06348841]
[1750784236989,0.5620897,106050.0,106040.0,0.03808841]
[1750784237203,0.5620897,106050.0,106040.0,0.00504582]
[1750784239224,0.88824551,106050.0,106040.0,0.19365389]
[1750784239448,0.5620897,106050.0,106040.0,0.20308429]
[1750784239926,0.5620897,106050.0,106040.0,0.23911424]
[1750784239927,0.37349907,106050.0,106040.0,0.23911424]
[1750784240151,0.37349907,106050.0,106040.0,0.27384411]
[1750784240359,0.35895822,106050.0,106040.0,0.36931406]
[1750784240578,0.35895778,106050.0,106040.0,0.37874384]
[1750784240804,0.36838702,106050.0,106040.0,0.36931415]
[1750784241024,0.56640672,106050.0,106040.0,0.35988437]
[1750784241226,0.37781644,106050.0,106040.0,0.3693145]
[1750784241461,0.36838702,106050.0,106040.0,0.37874454]
[1750784241672,0.36838702,106050.0,106040.0,0.38817432]
[1750784242280,0.36838702,106050.0,106040.0,0.38817441]
[1750784242526,0.36838702,106050.0,106040.0,0.38817388]
[1750784242971,0.36838693,106050.0,106040.0,0.38817388]
[1750784243587,0.35895778,106050.0,106040.0,0.38817388]
[1750784244552,0.36838684,106050.0,106040.0,0.38817388]
[1750784244785,0.3401,106050.0,106040.0,0.58049388]
[1750784244986,0.34952889,106050.0,106040.0,0.58049388]
[1750784245194,0.35895795,106050.0,106040.0,0.58049388]
[1750784245514,0.34952889,106050.0,106040.0,0.38817388]
[1750784245771,0.35895795,106050.0,106040.0,0.64409388]
[1750784246204,0.35895787,106050.0,106040.0,0.64409388]
[1750784246409,0.5664069,106050.0,106040.0,0.50147389]
[1750784246622,0.5664069,106050.0,106040.0,0.50446446]
[1750784246831,0.36838711,106050.0,106040.0,0.52332419]
[1750784246960,0.36838711,106050.0,106040.0,0.26740366]
[1750784247188,0.37781662,106050.0,106040.0,0.24854401]
[1750784247403,1.33204385,106050.0,106040.0,0.00504582]
[1750784247612,1.03168804,106050.0,106040.0,0.00504582]
[1750784247822,0.93964569,106050.0,106040.0,0.00504582]
[1750784248711,0.61348988,106050.0,106040.0,0.00504582]
[1750784248922,0.93964569,106050.0,106040.0,0.00504582]
[1750784249321,0.61348988,106050.0,106040.0,0.00504582]
[1750784251527,0.58768988,106050.0,106040.0,0.00504582]
[1750784252446,0.61288988,106050.0,106040.0,0.00504582]
[1750784253265,0.58768988,106050.0,106040.0,0.00504582]
[1750784253829,0.61418988,106050.0,106040.0,0.00504582]
[1750784255694,0.58768988,106050.0,106040.0,0.00504582]
[1750784256118,0.56208988,106050.0,106040.0,0.03184582]
[1750784256343,0.56208988,106050.0,106040.0,0.63174782]
[1750784256517,0.53811952,106050.0,106040.0,0.70569813]
[1750784256722,0.35895822,106050.0,106040.0,0.75145839]
[1750784256930,0.35895822,106050.0,106040.0,0.77031813]
[1750784257133,0.36838764,106050.0,106040.0,0.76088835]
[1750784257349,0.36838764,106050.0,106040.0,0.7514583]
[1750784257570,0.36838764,106050.0,106040.0,0.76088817]
[1750784257753,0.55697792,106050.0,106040.0,0.74202835]
[1750784257978,0.54754894,106050.0,106040.0,0.41587254]
[1750784258197,0.54754894,106050.0,106040.0,0.42530267]
[1750784258410,0.54754894,106050.0,106040.0,0.43473271]
[1750784258611,0.54754894,106050.0,106040.0,0.44416266]
[1750784258612,0.35895866,106050.0,106040.0,0.44416266]
[1750784258832,0.00952898,106050.0,106040.0,0.77031794]
[1750784259241,0.02838675,106050.0,106040.0,0.77031794]
[1750784259446,0.01895769,106050.0,106040.0,0.77031794]
[1750784259666,0.0189576,106050.0,106040.0,0.77031794]
[1750784260089,0.0001,106050.0,106040.0,0.77031794]
[1750784260286,0.0001,106050.0,106040.0,0.8658198]
[1750784260939,0.0001,106050.0,106040.0,0.8638198]
[1750784261380,0.0001,106050.0,106040.0,0.8608198]
[1750784261591,0.0021,106050.0,106040.0,0.8608198]
[1750784262430,0.01152871,106050.0,106040.0,0.44952587]
[1750784262656,0.02095751,106050.0,106040.0,0.44952587]
[1750784262866,0.03238657,106050.0,106040.0,0.77568168]
[1750784263082,0.04181581,106050.0,106040.0,0.92568168]
[1750784263287,0.24117747,106050.0,106040.0,0.3900442]
[1750784263700,0.24117747,106050.0,106040.0,0.4544842]
[1750784263907,0.24117747,106050.0,106040.0,0.54438239]
[1750784264531,0.22097747,106050.0,106040.0,0.55381261]
[1750784264737,0.22097747,106050.0,106040.0,0.59074265]
[1750784264942,0.22097747,106050.0,106040.0,0.6001726]
[1750784264943,0.23040698,106050.0,106040.0,0.6001726]
[1750784265372,0.23040698,106050.0,106040.0,0.3437726]
[1750784265588,0.23040698,106050.0,106040.0,0.60932247]
[1750784265793,0.03238719,106050.0,106040.0,0.60932194]
[1750784266219,0.69314719,106050.0,106040.0,0.25608582]
[1750784266445,0.24488952,106050.0,106040.0,0.25608582]
[1750784267086,0.57104533,106050.0,106040.0,4.582e-05]
[1750784267293,0.27148952,106050.0,106040.0,0.19124582]
[1750784267567,0.93764533,106050.0,106040.0,4.582e-05]
[1750784267771,1.03314719,106050.0,106040.0,4.582e-05]
[1750784268207,0.70699138,106050.0,106040.0,4.582e-05]
[1750784270196,0.68039138,106050.0,106040.0,4.582e-05]
[1750784271490,0.58488952,106050.0,106040.0,4.582e-05]
[1750784271919,0.60348952,106050.0,106040.0,4.582e-05]
[1750784272550,1.12061714,106050.0,106040.0,4.582e-05]
[1750784272756,1.351303,106050.0,106040.0,4.582e-05]
[1750784272980,1.05347619,106050.0,106040.0,4.582e-05]
[1750784273430,1.05147619,106050.0,106040.0,4.582e-05]
[1750784273661,1.04947619,106050.0,106040.0,4.582e-05]
[1750784273922,1.05147619,106050.0,106040.0,4.582e-05]
[1750784274157,0.72432038,106050.0,106040.0,4.582e-05]
[1750784274366,1.05047619,106050.0,106040.0,4.582e-05]
[1750784274584,1.05047619,106050.0,106040.0,0.00204582]
[1750784274817,1.02114719,106050.0,106040.0,4.582e-05]
[1750784275062,1.02114719,106050.0,106040.0,0.00404582]
[1750784277436,1.02114719,106050.0,106040.0,0.00604582]
[1750784278082,0.69499138,106050.0,106040.0,0.00604582]
[1750784278290,1.02114719,106050.0,106040.0,0.00604582]
[1750784278987,1.21030719,106050.0,106040.0,0.00604582]
[1750784279227,0.86551138,106050.0,106040.0,0.00604582]
[1750784279641,1.19166719,106050.0,106040.0,0.00604582]
[1750784280514,1.02094719,106050.0,106040.0,0.00604582]
[1750784280959,1.347103,106050.0,106040.0,0.00604582]
[1750784281842,1.02094719,106050.0,106040.0,0.00604582]
[1750784282092,1.51854275,106050.0,106040.0,0.00470826]
[1750784282317,1.51854275,106050.0,106010.0,0.4994]
[1750784282318,0.60054823,106020.0,106010.0,0.4994]
[1750784282527,0.88485009,106020.0,106010.0,0.4994]
[1750784283004,1.53716171,106020.0,106010.0,0.4994]
[1750784283218,1.53716171,106020.0,106010.0,0.55198004]
[1750784283435,1.53716171,106020.0,106010.0,0.4994]
[1750784283645,1.53716171,106020.0,106010.0,0.5024]
[1750784284327,1.53716171,106020.0,106010.0,0.5044]
[1750784284554,1.56549871,106020.0,106010.0,0.5044]
[1750784284781,1.56549871,106020.0,106010.0,0.55748004]
[1750784285223,0.91318709,106020.0,106010.0,0.55748004]
[1750784285447,0.89438709,106020.0,106010.0,0.55748004]
[1750784285673,1.1922059,106020.0,106010.0,0.55748004]
[1750784285894,1.07660404,106020.0,106010.0,0.57618004]
[1750784286110,0.88820404,106020.0,106010.0,0.57618004]
[1750784286368,1.07640404,106020.0,106010.0,0.57618004]
[1750784286642,1.09620404,106020.0,106010.0,0.5044]
[1750784286850,1.1917059,106020.0,106010.0,0.5044]
[1750784287078,1.1915859,106020.0,106010.0,0.5044]
[1750784287301,1.2107859,106020.0,106010.0,0.5044]
[1750784287513,0.88463009,106020.0,106010.0,0.5044]
[1750784287767,0.64811774,106020.0,106010.0,0.77447455]
[1750784287969,0.56204823,106020.0,106010.0,0.57638004]
[1750784288183,0.75040823,106020.0,106010.0,0.57638004]
[1750784288429,0.75040823,106020.0,106010.0,0.5233]
[1750784288837,1.07656404,106020.0,106010.0,0.5233]
[1750784289042,0.75040823,106020.0,106010.0,0.5233]
[1750784289247,0.75064823,106020.0,106010.0,0.5233]
[1750784290086,0.56204823,106020.0,106010.0,0.5233]
[1750784290267,0.75032823,106020.0,106010.0,0.5233]
[1750784290717,0.75032823,106020.0,106010.0,0.79994913]
[1750784290926,0.56204823,106020.0,106010.0,0.80938211]
[1750784291133,0.5714797,106020.0,106010.0,0.84684744]
[1750784291346,0.38283605,106020.0,106010.0,0.84684762]
[1750784291591,0.59034397,106020.0,106010.0,0.85628015]
[1750784291801,0.58091188,106020.0,106010.0,0.83741455]
[1750784292277,0.23637209,106040.0,106020.0,0.22639604]
[1750784292509,0.23637209,106040.0,106030.0,0.63310808]
[1750784292510,0.2074686,106040.0,106030.0,0.63310808]
[1750784292716,0.21689855,106040.0,106030.0,0.60487706]
[1750784292972,0.01886133,106030.0,106020.0,0.42200874]
[1750784293195,0.21689882,106040.0,106030.0,0.20748799]
[1750784293412,0.23143967,106040.0,106030.0,0.22638799]
[1750784293652,0.23443967,106040.0,106030.0,0.40471697]
[1750784294275,0.23543967,106040.0,106030.0,0.40471697]
[1750784294810,0.0468308,106040.0,106030.0,0.449554]
[1750784295037,0.03440067,106040.0,106030.0,0.449554]
[1750784295268,0.0438308,106040.0,106030.0,0.449554]
[1750784295532,0.04483071,106040.0,106030.0,0.449154]
[1750784295744,0.03540058,106040.0,106030.0,0.449154]
[1750784295972,0.04483071,106040.0,106030.0,0.449154]
[1750784296164,0.03540058,106040.0,106030.0,0.449154]
[1750784296408,0.02597063,106040.0,106030.0,0.449154]
[1750784296634,0.002,106040.0,106030.0,0.669154]
[1750784297080,0.03028924,106040.0,106030.0,0.669154]
[1750784297308,0.03028916,106040.0,106030.0,0.669154]
[1750784297527,0.02085929,106040.0,106030.0,0.669154]
[1750784297984,0.01985929,106040.0,106030.0,0.669154]
[1750784298440,0.02285929,106040.0,106030.0,0.669154]
[1750784298644,0.03128916,106040.0,106030.0,0.669154]
[1750784298901,0.007,106040.0,106030.0,0.669154]
[1750784299890,0.004,106040.0,106030.0,0.731394]
[1750784300324,0.04829111,106050.0,106040.0,0.2168982]
[1750784300546,0.03886178,106050.0,106040.0,0.31515282]
[1750784300769,0.04829111,106050.0,106040.0,0.31515282]
[1750784301011,0.04829182,106050.0,106040.0,0.31515282]
[1750784301241,0.04829235,106050.0,106040.0,0.31515282]
[1750784301948,0.03886284,106050.0,106040.0,0.31515282]
[1750784302170,0.02000409,106050.0,106040.0,0.31515282]
[1750784302390,0.02943342,106050.0,106040.0,0.31515282]
[1750784302611,0.04829235,106050.0,106040.0,0.31515299]
[1750784302860,0.03886284,106050.0,106040.0,0.33401264]
[1750784303114,0.02000365,106050.0,106040.0,0.33401264]
[1750784303564,0.02943289,106050.0,106040.0,0.33401264]
[1750784303857,0.00114579,106050.0,106040.0,0.33401264]
[1750784304095,0.00114579,106050.0,106040.0,1.2991643]
[1750784304328,0.00014579,106050.0,106040.0,1.80862848]
[1750784304747,0.00014579,106050.0,106040.0,1.55970848]
[1750784304966,0.00314579,106050.0,106040.0,1.80858848]
[1750784305609,0.00314579,106050.0,106040.0,1.55970848]
[1750784305804,0.00314579,106050.0,106040.0,1.80854848]
[1750784306472,0.00014579,106050.0,106040.0,2.07257868]
[1750784308451,0.00414579,106050.0,106040.0,2.07257868]
[1750784308664,0.00414579,106050.0,106040.0,1.73257868]
[1750784308880,0.00014579,106050.0,106040.0,1.73257868]
[1750784309303,0.00014579,106050.0,106040.0,1.73457868]
[1750784309558,0.00014579,106050.0,106040.0,0.9762745]
[1750784309768,0.00014579,106050.0,106040.0,1.2238745]
[1750784310410,0.00014579,106050.0,106040.0,0.9762745]
[1750784310654,0.00014579,106050.0,106040.0,1.2237945]
[1750784310873,0.00014579,106050.0,106040.0,1.73325868]
[1750784311781,0.0190033,106050.0,106040.0,1.50460868]
[1750784312005,0.00014579,106050.0,106040.0,1.75200868]
[1750784312246,0.00014579,106050.0,106040.0,1.50460868]
[1750784312473,0.00014579,106050.0,106040.0,1.75160868]
[1750784315007,0.00014579,106050.0,106040.0,1.2421445]
[1750784315226,0.00014579,106050.0,106040.0,1.75160868]
[1750784316320,0.00014579,106050.0,106040.0,1.67655944]
[1750784317302,0.00014579,106050.0,106040.0,2.11097438]
[1750784321614,0.00014579,106050.0,106040.0,0.73179988]
[1750784321852,0.0286745,106050.0,106040.0,0.3688982]
[1750784322075,0.0381033,106050.0,106040.0,0.2188982]
[1750784322295,0.0381033,106050.0,106040.0,0.4123382]
[1750784322517,0.01924579,106050.0,106040.0,0.84675314]
[1750784322752,0.01924579,106050.0,106040.0,0.50680815]
[1750784322996,0.04010348,106050.0,106040.0,0.94122309]
[1750784323236,0.04953254,106050.0,106040.0,0.94122309]
[1750784323456,0.0683912,106050.0,106040.0,0.94122309]
[1750784323669,0.05896169,106050.0,106040.0,0.94022309]
[1750784323883,0.04953272,106050.0,106040.0,0.94022309]
[1750784324322,0.02100348,106050.0,106040.0,0.95952309]
[1750784324544,0.02400339,106050.0,106040.0,1.02216309]
[1750784324762,0.02400339,106050.0,106040.0,0.70175001]
[1750784324763,0.0145745,106050.0,106040.0,0.70175001]
[1750784324945,0.02400348,106050.0,106040.0,1.13616495]
[1750784325651,0.00514579,106050.0,106040.0,1.13616495]
[1750784325844,0.00514579,106050.0,106040.0,1.57057989]
[1750784326100,0.00514579,106050.0,106040.0,1.13616495]
[1750784326320,0.03771279,106060.0,106050.0,1.41173195]
[1750784326567,0.03771279,106060.0,106050.0,1.94161684]
[1750784326777,0.03771279,106060.0,106050.0,1.5072019]
[1750784326993,0.0377127,106060.0,106050.0,1.96091684]
[1750784327894,0.02828426,106060.0,106050.0,1.96091684]
[1750784328106,0.022856,106060.0,106050.0,1.96091684]
[1750784328320,0.03228418,106060.0,106050.0,1.96091684]
[1750784328725,0.01342791,106060.0,106050.0,1.96091684]
[1750784329215,0.11968215,106060.0,106050.0,1.41173195]
[1750784329439,0.25118556,106060.0,106050.0,1.20230315]
[1750784329673,0.28542641,106060.0,106050.0,1.20230342]
[1750784329898,0.26657032,106060.0,106050.0,1.192874]
[1750784330109,0.26657032,106060.0,106050.0,1.63671818]
[1750784330345,0.24771335,106060.0,106050.0,1.42926915]
[1750784330565,0.24771335,106060.0,106050.0,1.09032416]
[1750784331214,0.68212829,106060.0,106050.0,1.19473421]
[1750784331880,0.2134725,106060.0,106050.0,1.83659818]
[1750784332095,0.23232929,106060.0,106050.0,1.38332449]
[1750784332315,0.23232929,106060.0,106050.0,1.40218306]
[1750784332551,0.24175791,106060.0,106050.0,1.4210411]
[1750784332767,0.04375679,106060.0,106050.0,1.52593994]
[1750784333003,0.04375626,106060.0,106050.0,1.52593994]
[1750784333215,0.034328,106060.0,106050.0,1.96035488]
[1750784333428,0.015428,106060.0,106050.0,2.17955488]
[1750784333641,0.024856,106060.0,106050.0,2.17955488]
[1750784333850,0.024856,106060.0,106050.0,1.74513994]
[1750784334063,0.024856,106060.0,106050.0,2.17955488]
[1750784334719,0.01542791,106060.0,106050.0,2.17955488]
[1750784335181,0.006,106060.0,106050.0,2.17955488]
[1750784335810,0.01542791,106060.0,106050.0,2.17955488]
[1750784336037,0.006,106060.0,106050.0,2.17955488]
[1750784336254,0.01542791,106060.0,106050.0,2.17955488]
[1750784336719,0.006,106060.0,106050.0,2.17955488]
[1750784336943,0.006,106060.0,106050.0,2.27505674]
[1750784338007,0.01542782,106060.0,106050.0,2.27505674]
[1750784338234,0.006,106060.0,106050.0,2.27505674]
[1750784338761,0.006,106060.0,106050.0,2.51962654]
[1750784339199,0.006,106060.0,106050.0,2.44365674]
[1750784339421,0.004,106060.0,106050.0,2.44365674]
[1750784339848,0.005,106060.0,106050.0,2.44365674]
[1750784340061,0.001,106060.0,106050.0,2.44365674]
[1750784341714,0.001,106060.0,106050.0,2.66993674]
[1750784342150,0.002,106060.0,106050.0,2.66993674]
[1750784343838,0.001,106060.0,106050.0,2.73317674]
[1750784344761,0.001,106060.0,106050.0,2.2987618]
[1750784344972,0.001,106060.0,106050.0,2.73317674]
[1750784346294,0.37821217,106080.0,106070.0,0.41683685]
[1750784346510,0.3876843,106080.0,106070.0,1.12610673]
[1750784346728,0.37825799,106080.0,106070.0,1.12610673]
[1750784346925,0.02883186,106080.0,106070.0,1.12610673]
[1750784347598,0.00240582,106080.0,106070.0,0.71039179]
[1750784347811,0.00240582,106080.0,106070.0,1.24030859]
[1750784348467,0.00340582,106080.0,106070.0,1.24030859]
[1750784350029,0.00340582,106080.0,106070.0,0.80589365]
[1750784350240,0.00340582,106080.0,106070.0,1.24030859]
[1750784350461,0.01283186,106080.0,106070.0,1.24030859]
[1750784350714,0.00340582,106080.0,106070.0,1.24030859]
[1750784350926,0.01283186,106080.0,106070.0,1.24030859]
[1750784351128,0.01283186,106080.0,106070.0,0.80589365]
[1750784351337,0.01283186,106080.0,106070.0,1.24030859]
[1750784351777,0.01283186,106080.0,106070.0,0.80589365]
[1750784351988,0.01283186,106080.0,106070.0,1.24030859]
[1750784352431,0.00340582,106080.0,106070.0,1.24030859]
[1750784353514,0.00340582,106080.0,106070.0,1.30298859]
[1750784354168,0.00340582,106080.0,106070.0,1.19470859]
[1750784354382,0.00340582,106080.0,106070.0,1.67854859]
[1750784354612,0.00340582,106080.0,106070.0,1.68792491]
[1750784355072,0.00340582,106080.0,106070.0,1.25350997]
[1750784355281,0.01283195,106080.0,106070.0,1.68792491]
[1750784355506,0.01283186,106080.0,106070.0,1.68792491]
[1750784355778,0.00340582,106080.0,106070.0,1.68792491]
[1750784357160,0.00340582,106080.0,106070.0,2.29123985]
[1750784357626,0.00340582,106080.0,106070.0,1.85818491]
[1750784358478,0.00140582,106080.0,106070.0,1.85818491]
[1750784358700,0.00040582,106080.0,106070.0,1.59926491]
[1750784358925,0.00040582,106080.0,106070.0,1.85778491]
[1750784360907,0.00140582,106080.0,106070.0,1.85778491]
[1750784361333,0.00240582,106080.0,106070.0,1.85778491]
[1750784367891,0.00240582,106080.0,106070.0,1.42336997]
[1750784368073,0.00240582,106080.0,106070.0,1.85778491]
[1750784368309,0.00240582,106080.0,106070.0,2.29219985]
[1750784369173,0.00240582,106080.0,106070.0,1.85778491]
[1750784371122,0.00240582,106080.0,106070.0,2.63219985]
[1750784371331,0.00240582,106080.0,106070.0,2.19778491]
[1750784371542,0.00240582,106080.0,106070.0,2.63219985]
[1750784372638,0.00140582,106080.0,106070.0,2.63219985]
[1750784372852,0.2034432,106100.0,106090.0,0.15]
[1750784373122,0.22882803,106150.0,106090.0,0.15]
[1750784373123,0.0160959,106160.0,106150.0,0.02826081]
[1750784373339,0.02818819,106190.0,106180.0,0.54719433]
[1750784373561,0.06595526,106220.0,106180.0,0.54719433]
[1750784373562,0.028371,106220.0,106210.0,0.55655103]
[1750784373779,8e-05,106220.0,106210.0,1.00943103]
[1750784373992,8e-05,106220.0,106210.0,1.58851191]
[1750784374211,0.12774219,106290.0,106270.0,0.15]
[1750784374438,0.13651101,106290.0,106280.0,0.15235189]
[1750784374654,0.13651101,106290.0,106280.0,0.15]
[1750784374862,4.588e-05,106260.0,106250.0,0.41643564]
[1750784375078,4.588e-05,106260.0,106250.0,0.39764696]
[1750784375288,4.588e-05,106260.0,106250.0,0.35]
[1750784375289,0.20708458,106260.0,106250.0,0.35]
[1750784375504,0.01886701,106260.0,106250.0,0.39764696]
[1750784375715,0.22590624,106260.0,106250.0,0.40705854]
[1750784375925,0.22590535,106260.0,106250.0,0.2]
[1750784376142,0.00945596,106260.0,106250.0,0.55705837]
[1750784376377,4.588e-05,106260.0,106250.0,0.56646951]
[1750784376583,0.01045613,106260.0,106250.0,0.56646969]
[1750784376793,0.20808413,106260.0,106250.0,0.2]
[1750784377018,0.02847782,106260.0,106250.0,0.39764687]
[1750784377225,0.22610609,106260.0,106250.0,0.39764687]
[1750784377434,0.22610609,106260.0,106250.0,0.2]
[1750784377640,0.21669592,106260.0,106250.0,0.2]
[1750784377851,0.21669592,106260.0,106250.0,0.20941176]
[1750784378062,0.21669592,106260.0,106250.0,0.41647021]
[1750784378279,0.01036891,106260.0,106250.0,0.43529276]
[1750784378482,0.0291895,106260.0,106250.0,0.43529276]
[1750784378717,0.04801081,106260.0,106250.0,0.55606973]
[1750784378924,0.0291895,106260.0,106250.0,0.52783569]
[1750784379137,0.03860002,106260.0,106250.0,0.32077697]
[1750784379348,0.03860002,106260.0,106250.0,0.22527511]
[1750784379349,0.03860064,106260.0,106250.0,0.22527511]
[1750784379548,0.03860064,106260.0,106250.0,0.61352198]
[1750784379549,0.21665484,106260.0,106250.0,0.61352198]
[1750784379758,0.1985871,106260.0,106250.0,0.42528687]
[1750784379991,0.1891764,106260.0,106250.0,0.41587511]
[1750784380647,0.7386445,106260.0,106250.0,0.02527511]
[1750784381328,0.23167002,106260.0,106250.0,0.02527511]
[1750784381534,0.7386445,106260.0,106250.0,0.02527511]
[1750784381959,0.21647003,106250.0,106240.0,0.36649015]
[1750784382191,0.01882219,106250.0,106240.0,0.37590218]
[1750784382401,0.04705676,106250.0,106240.0,0.36649024]
[1750784382659,0.02823404,106250.0,106240.0,0.35707804]
[1750784382861,0.03764571,106250.0,106240.0,0.54943804]
[1750784383070,0.02823404,106250.0,106240.0,0.51373231]
[1750784383272,0.21645107,106260.0,106250.0,0.40705854]
[1750784383487,0.22586194,106260.0,106250.0,0.41647003]
[1750784384121,0.01882095,106260.0,106250.0,0.43529258]
[1750784384334,0.01882095,106260.0,106250.0,0.46056769]
[1750784385029,0.18820149,106270.0,106260.0,0.19762827]
[1750784385030,0.20701851,106270.0,106260.0,0.19762827]
[1750784385257,0.22583822,106270.0,106260.0,0.39883888]
[1750784385476,0.22583822,106270.0,106260.0,0.40824931]
[1750784385707,0.02822837,106270.0,106260.0,0.41765965]
[1750784385921,0.528215,106280.0,106270.0,0.41642903]
[1750784385922,0.35881723,106280.0,106270.0,0.41642903]
[1750784386136,0.01886337,106280.0,106270.0,0.41642876]
[1750784386348,0.02827176,106280.0,106270.0,0.41642876]
[1750784386628,0.01886292,106280.0,106270.0,0.51189871]
[1750784386846,4.578e-05,106280.0,106270.0,0.75740057]
[1750784387057,0.02827132,106280.0,106270.0,0.7058588]
[1750784387282,0.19757369,106290.0,106280.0,0.21596999]
[1750784387283,0.02326902,106290.0,106280.0,0.21596999]
[1750784387501,0.02326902,106290.0,106280.0,0.2412451]
[1750784387712,0.62881109,106300.0,106290.0,0.19757249]
[1750784387923,0.61865955,106300.0,106280.0,0.24168369]
[1750784388142,0.01881608,106290.0,106280.0,0.21345727]
[1750784388368,0.61944545,106300.0,106280.0,0.33718547]
[1750784388627,0.00940751,106290.0,106280.0,0.34659395]
[1750784388843,0.20698027,106290.0,106280.0,0.21907511]
[1750784389068,0.21638831,106290.0,106280.0,0.41666628]
[1750784389290,0.61003829,106300.0,106290.0,0.19757267]
[1750784389517,0.07248355,106300.0,106290.0,0.72232469]
[1750784389736,0.07248355,106300.0,106290.0,0.87232469]
[1750784389963,0.07248355,106300.0,106290.0,1.15288469]
[1750784390176,0.07248355,106300.0,106290.0,1.65985917]
[1750784390423,0.07248355,106300.0,106290.0,1.46473917]
[1750784390646,0.07248355,106300.0,106290.0,1.66205917]
[1750784390858,0.07248355,106300.0,106290.0,1.41399917]
[1750784391065,0.07248355,106300.0,106290.0,1.17138469]
[1750784391278,0.07248355,106300.0,106290.0,1.73859562]
[1750784391495,0.07248355,106300.0,106290.0,1.73987562]
[1750784391723,0.07248355,106300.0,106290.0,1.73887562]
[1750784391939,0.07248355,106300.0,106290.0,1.67369562]
[1750784392163,0.07248355,106300.0,106290.0,0.77600469]
[1750784392408,0.07248355,106300.0,106290.0,0.68050283]
[1750784392627,0.07248355,106300.0,106290.0,1.08229917]
[1750784392842,0.07248355,106300.0,106290.0,0.68574283]
[1750784393063,0.07248355,106300.0,106290.0,0.67133523]
[1750784393278,0.08838355,106300.0,106290.0,0.40698044]
[1750784393493,0.62871257,106300.0,106290.0,0.18916445]
[1750784393717,0.60989888,106300.0,106290.0,0.19016445]
[1750784393926,0.60989888,106300.0,106290.0,0.25437417]
[1750784394137,0.11233102,106300.0,106290.0,0.25337417]
[1750784394615,1.08882141,106300.0,106290.0,0.19016445]
[1750784394823,1.28559388,106300.0,106290.0,0.19016445]
[1750784395029,1.28559388,106300.0,106290.0,0.18816445]
[1750784395237,1.07963308,106300.0,106290.0,0.18916445]
[1750784395447,1.08903988,106300.0,106290.0,0.18916445]
[1750784395663,0.5726586,106300.0,106290.0,0.23030841]
[1750784395879,0.5772722,106300.0,106290.0,0.23030841]
[1750784396093,0.57727229,106300.0,106290.0,0.23030841]
[1750784396536,0.38975578,106290.0,106280.0,0.21345327]
[1750784396759,0.47506843,106290.0,106280.0,0.23227121]
[1750784396965,0.47506843,106290.0,106280.0,0.22286237]
[1750784397175,0.37956657,106290.0,106280.0,0.21345327]
[1750784397391,0.03956657,106290.0,106280.0,0.21345327]
[1750784397620,0.37956657,106290.0,106280.0,0.23227138]
[1750784397828,0.37956657,106290.0,106280.0,0.21345327]
[1750784398067,0.37956657,106290.0,106280.0,0.2228622]
[1750784398068,0.36702572,106290.0,106280.0,0.2228622]
[1750784398282,0.36702572,106290.0,106280.0,0.24167934]
[1750784398489,0.36702572,106290.0,106280.0,0.24167943]
[1750784398914,0.02902572,106290.0,106280.0,0.23227095]
[1750784399128,0.02902572,106290.0,106280.0,0.24167943]
[1750784399339,0.0204,106290.0,106280.0,0.24167943]
[1750784400615,0.0204,106290.0,106280.0,0.24167961]
[1750784400817,0.0204,106290.0,106280.0,0.23227104]
[1750784401039,0.0204,106290.0,106280.0,0.25108836]
[1750784401260,0.004,106290.0,106280.0,0.26049684]
[1750784402540,0.004,106290.0,106280.0,0.24167979]
[1750784402766,0.03222297,106290.0,106280.0,0.2228622]
[1750784402983,0.03821511,106290.0,106280.0,0.22286228]
[1750784403220,0.04762297,106290.0,106280.0,0.22286228]
[1750784403437,0.06643923,106290.0,106280.0,0.23227121]
[1750784403650,0.24092156,106290.0,106280.0,0.23066343]
[1750784403867,0.02394845,106290.0,106280.0,0.24948137]
[1750784404124,0.01454085,106290.0,106280.0,0.2682986]
[1750784404348,0.07248355,106300.0,106290.0,0.41638804]
[1750784404578,0.07248355,106300.0,106290.0,0.52906415]
[1750784404793,0.07248355,106300.0,106290.0,0.73094415]
[1750784405461,0.07248355,106300.0,106290.0,0.82644601]
[1750784405930,0.07248355,106300.0,106290.0,0.73090415]
[1750784406143,0.10070377,106300.0,106290.0,0.73090451]
[1750784406365,0.11951808,106300.0,106290.0,0.74031246]
[1750784406576,0.29825883,106300.0,106290.0,0.52906477]
[1750784406797,0.27944487,106300.0,106290.0,0.73090486]
[1750784407016,0.09129742,106300.0,106290.0,0.52906477]
[1750784407251,0.09129689,106300.0,106290.0,0.52906477]
[1750784407471,0.09129689,106300.0,106290.0,0.53847237]
[1750784407688,0.11011111,106300.0,106290.0,0.52906477]
[1750784407918,0.11011111,106300.0,106290.0,0.54788006]
[1750784407919,0.09129689,106300.0,106290.0,0.54788006]
[1750784408133,0.10070387,106300.0,106290.0,0.53847246]
[1750784408349,0.84458035,106300.0,106290.0,0.40537061]
[1750784408611,0.82576701,106300.0,106290.0,0.20537764]
[1750784408831,0.12123845,106300.0,106290.0,0.23360159]
[1750784409055,0.13064569,106300.0,106290.0,0.22419381]
[1750784409286,0.29997839,106300.0,106290.0,0.06285999]
[1750784409512,0.29057115,106300.0,106290.0,0.26043257]
[1750784409731,0.29057115,106300.0,106290.0,0.25102444]
[1750784409950,0.29057115,106300.0,106290.0,0.26043266]
[1750784410164,0.29157115,106300.0,106290.0,0.06285999]
[1750784410385,0.11283138,106300.0,106290.0,0.26043248]
[1750784410597,0.14105213,106300.0,106290.0,0.27924829]
[1750784410811,0.14105213,106300.0,106290.0,0.26984043]
[1750784411033,0.31979226,106300.0,106290.0,0.25102444]
[1750784411271,0.64097839,106300.0,106290.0,0.06285999]
[1750784411496,0.64097839,106300.0,106290.0,0.25102444]
[1750784411959,0.6497559,106300.0,106290.0,0.25102444]
[1750784412171,0.59330362,106300.0,106290.0,0.26043266]
[1750784412429,0.78960303,106300.0,106290.0,0.01721319]
[1750784412665,1.80355199,106300.0,106290.0,0.01721319]
[1750784412896,0.19764687,106250.0,106240.0,0.5]
[1750784413125,0.55324687,106250.0,106240.0,0.33877106]
[1750784413384,0.53764687,106250.0,106240.0,0.19766557]
[1750784413604,0.21649051,106240.0,106230.0,0.20709703]
[1750784413826,0.35454085,106250.0,106240.0,0.19766548]
[1750784414049,0.00941203,106240.0,106230.0,0.40408394]
[1750784414314,0.22159983,106250.0,106240.0,0.2]
[1750784414548,0.22159983,106250.0,106240.0,0.260413]
[1750784415233,0.56760633,106240.0,106230.0,4.578e-05]
[1750784415462,0.88454819,106240.0,106230.0,4.578e-05]